bitfinex/quotes_SOLUSD_20240930
["timestamp","ask_amount","ask_price","bid_price","bid_amount"]
[1727669019771,21.9469,156.41,156.38,10.31492027]
[1727669020286,1.59860472,156.4,156.38,10.31492027]
[1727669020994,21.9469,156.41,156.38,10.31492027]
[1727669024791,24.027864,156.43,156.38,10.31492027]
[1727669025379,23.776884,156.41,156.38,10.31492027]
[1727669026969,1.59856625,156.4,156.33,20.0]
[1727669027196,23.776884,156.39,156.3,6.2394]
[1727669027384,23.776884,156.39,156.28,22.60561642]
[1727669027385,23.776884,156.37,156.32,10.31492027]
[1727669027586,1.59899681,156.36,156.32,10.31492027]
[1727669028391,23.776884,156.35,156.3,10.31492027]
[1727669028594,1.59921676,156.34,156.3,10.31492027]
[1727669029594,1.59921676,156.34,156.24,22.42866883]
[1727669029595,23.776884,156.33,156.28,10.31492027]
[1727669029784,1.59944842,156.32,156.28,10.31492027]
[1727669029969,23.776884,156.31,156.28,10.31492027]
[1727669030166,1.59960152,156.3,156.26,10.31492027]
[1727669030378,23.776884,156.31,156.24,15.7886]
[1727669030571,1.59974351,156.3,156.25,10.31492027]
[1727669031200,0.12549,156.32,156.27,10.31492027]
[1727669031572,23.902374,156.34,156.25,36.11025748]
[1727669031888,23.776884,156.31,156.25,36.11025748]
[1727669032090,1.59959474,156.3,156.25,36.11025748]
[1727669032294,1.59959474,156.3,156.24,20.0]
[1727669032599,0.12549,156.3,156.24,20.0]
[1727669032894,0.12549,156.3,156.25,1.27982651]
[1727669033112,23.776884,156.28,156.21,6.6378959]
[1727669033278,23.776884,156.28,156.22,30.0]
[1727669033606,23.776884,156.28,156.23,1.27992487]
[1727669034377,23.776884,156.28,156.23,21.27992487]
[1727669034587,6.4825,156.29,156.23,21.27992487]
[1727669034900,24.027864,156.31,156.23,21.27992487]
[1727669036093,23.902374,156.31,156.23,21.27992487]
[1727669036396,23.776884,156.31,156.25,20.0]
[1727669037696,0.12549,156.3,156.2,22.49752026]
[1727669038004,0.25098,156.28,156.21,67.39012066]
[1727669038502,23.776884,156.27,156.21,50.0]
[1727669039107,24.027864,156.28,156.2,15.8595857]
[1727669039477,23.776884,156.26,156.2,15.8595857]
[1727669039983,23.776884,156.27,156.2,0.8003857]
[1727669040184,1.60012367,156.26,156.2,0.8003857]
[1727669040582,1.60016613,156.25,156.2,0.8003857]
[1727669040788,24.027864,156.28,156.2,0.8003857]
[1727669040789,23.902374,156.26,156.2,0.8003857]
[1727669041086,1.60020507,156.25,156.2,0.8003857]
[1727669042177,23.776884,156.24,156.2,0.8003857]
[1727669042805,23.776884,156.25,156.2,0.8003857]
[1727669042975,1.60027894,156.24,156.2,0.8003857]
[1727669043181,23.776884,156.23,156.2,0.8003857]
[1727669043599,16.0098,156.25,156.2,0.8003857]
[1727669043903,23.776884,156.24,156.2,0.8003857]
[1727669045005,25.37718803,156.24,156.2,0.8003857]
[1727669046004,23.776884,156.24,156.2,2.08062998]
[1727669047213,23.776884,156.24,156.2,0.8003857]
[1727669047591,25.37718684,156.24,156.2,0.8003857]
[1727669048491,23.776884,156.24,156.2,0.8003857]
[1727669051721,23.776884,156.24,156.2,11.12132562]
[1727669055130,25.37716931,156.24,156.2,11.12132562]
[1727669055626,0.12549,156.23,156.2,0.8003857]
[1727669055835,1.6005023,156.22,156.2,0.8003857]
[1727669056708,23.776884,156.22,156.2,0.8003857]
[1727669056913,1.60052248,156.21,156.2,0.8003857]
[1727669057241,23.776884,156.22,156.2,0.8003857]
[1727669057412,1.60052236,156.21,156.2,0.8003857]
[1727669058125,25.37740636,156.21,156.2,0.8003857]
[1727669058512,23.776884,156.21,156.2,0.8003857]
[1727669059926,23.902374,156.21,156.2,0.8003857]
[1727669061327,1.60068553,156.24,156.2,0.8003857]
[1727669061624,6.553,156.27,156.2,11.12132562]
[1727669061807,6.553,156.27,156.22,10.32093992]
[1727669062608,1.60011835,156.26,156.22,10.32093992]
[1727669064030,23.902374,156.25,156.22,10.32093992]
[1727669064232,1.60027332,156.24,156.2,11.12132562]
[1727669064437,23.776884,156.23,156.2,11.12132562]
[1727669064607,23.776884,156.23,156.2,0.8003857]
[1727669065233,1.60040315,156.22,156.2,0.8003857]
[1727669065539,23.776884,156.21,156.2,0.8003857]
[1727669066230,24.027864,156.21,156.2,0.8003857]
[1727669067409,25.62865484,156.21,156.2,0.8003857]
[1727669067906,31.69825484,156.21,156.2,0.8003857]
[1727669068111,38.09985484,156.21,156.2,0.8003857]
[1727669068420,36.499064,156.21,156.2,0.8003857]
[1727669068846,38.1000238,156.21,156.2,0.8003857]
[1727669070334,36.499064,156.21,156.2,0.8003857]
[1727669070515,38.10011378,156.21,156.2,0.8003857]
[1727669071820,36.499064,156.21,156.2,0.8003857]
[1727669072255,6.0696,156.21,156.2,0.8003857]
[1727669072529,22.5795,156.23,156.2,0.8003857]
[1727669072740,16.1785,156.23,156.2,0.8003857]
[1727669073037,13.0238,156.25,156.2,0.8003857]
[1727669073239,1.60058841,156.24,156.2,0.8003857]
[1727669073734,1.60059496,156.23,156.2,0.8003857]
[1727669074334,23.776884,156.22,156.2,0.8003857]
[1727669074536,25.50311458,156.21,156.2,0.8003857]
[1727669074831,24.027864,156.21,156.2,0.8003857]
[1727669075132,23.902374,156.21,156.2,0.8003857]
[1727669075913,23.776884,156.21,156.2,0.8003857]
[1727669077717,23.902374,156.21,156.2,0.8003857]
[1727669078546,23.776884,156.21,156.2,0.8003857]
[1727669078921,23.902374,156.21,156.2,0.8003857]
[1727669079137,24.027864,156.21,156.2,0.8003857]
[1727669079844,23.902374,156.21,156.2,0.8003857]
[1727669082123,23.776884,156.21,156.2,0.8003857]
[1727669083324,23.902374,156.21,156.2,0.8003857]
[1727669083727,24.027864,156.21,156.2,0.8003857]
[1727669084435,23.902374,156.21,156.2,0.8003857]
[1727669084644,24.027864,156.21,156.2,0.8003857]
[1727669086245,30.429464,156.21,156.2,0.8003857]
[1727669091444,6.6235,156.25,156.2,0.8003857]
[1727669091651,13.0238,156.25,156.2,11.1295733]
[1727669092147,6.4008,156.23,156.2,11.1295733]
[1727669092358,1.60055303,156.22,156.2,0.8003857]
[1727669092856,13.0238,156.25,156.2,0.8003857]
[1727669093227,15.6145,156.27,156.25,0.999616]
[1727669093228,30.176384,156.26,156.25,0.999616]
[1727669094060,31.90234279,156.26,156.25,0.999616]
[1727669094457,30.301874,156.26,156.25,0.999616]
[1727669094652,30.427364,156.26,156.25,0.999616]
[1727669096653,32.02797349,156.26,156.25,0.999616]
[1727669097651,30.427364,156.26,156.25,0.999616]
[1727669098266,32.02796771,156.26,156.25,0.999616]
[1727669098659,30.427364,156.26,156.25,0.999616]
[1727669099851,32.02793562,156.26,156.25,0.999616]
[1727669100879,32.02793562,156.26,156.15,1.7678017]
[1727669100880,0.25098,156.2,156.15,1.7678017]
[1727669101167,1.85181083,156.2,156.13,16.12775731]
[1727669101370,1.60083197,156.19,156.13,16.12775731]
[1727669102073,6.65298,156.2,156.13,16.12775731]
[1727669102579,0.25098,156.2,156.13,16.12775731]
[1727669103372,6.4013,156.22,156.15,16.12775731]
[1727669103578,1.60083181,156.25,156.07,66.8792005]
[1727669103579,15.6145,156.27,156.17,16.12775731]
[1727669103887,15.6145,156.27,156.19,16.12775731]
[1727669103888,6.3996,156.26,156.19,16.12775731]
[1727669104061,8.00031703,156.25,156.19,16.12775731]
[1727669104261,8.00031703,156.25,156.18,20.0]
[1727669105356,6.4,156.25,156.18,20.0]
[1727669105554,6.52509,156.26,156.18,20.0]
[1727669105755,1.11499843,156.29,156.19,17.40797446]
[1727669105970,6.3996,156.26,156.19,16.12775731]
[1727669106175,1.60021797,156.25,156.19,16.12775731]
[1727669106673,6.3996,156.26,156.19,16.12775731]
[1727669107060,0.12549,156.24,156.19,16.12775731]
[1727669107268,1.72583633,156.24,156.18,20.0]
[1727669107476,1.72583633,156.24,156.17,15.2176]
[1727669107666,23.902374,156.23,156.16,20.0]
[1727669107974,0.12549,156.21,156.16,20.0]
[1727669108479,1.6006842,156.2,156.15,16.12775731]
[1727669108677,0.12549,156.19,156.13,38.83830031]
[1727669108880,1.6006842,156.2,156.13,32.20345731]
[1727669108881,0.12549,156.2,156.13,32.20345731]
[1727669109784,0.12549,156.2,156.14,20.0]
[1727669111765,0.12549,156.21,156.15,17.4084289]
[1727669111969,6.4007,156.24,156.15,17.4084289]
[1727669112175,6.4007,156.24,156.17,16.12775731]
[1727669112484,22.7041,156.25,156.17,16.12775731]
[1727669112860,1.60041564,156.24,156.17,16.12775731]
[1727669113571,8.00081564,156.24,156.17,16.12775731]
[1727669114278,0.12549,156.23,156.15,16.12775731]
[1727669114476,8.00183442,156.22,156.15,16.12775731]
[1727669115173,0.12549,156.21,156.15,16.12775731]
[1727669115682,0.12549,156.21,156.16,1.28051396]
[1727669115977,0.25098,156.22,156.16,1.28051396]
[1727669116187,0.25098,156.22,156.15,16.12775731]
[1727669116381,0.25098,156.22,156.16,1.28051241]
[1727669116567,0.25098,156.22,156.15,16.12775731]
[1727669117083,0.25098,156.22,156.16,1.28051292]
[1727669117585,0.25098,156.22,156.17,1.28051296]
[1727669118186,1.85162248,156.22,156.15,16.12775731]
[1727669118483,0.25098,156.22,156.15,16.12775731]
[1727669119087,1.85162189,156.22,156.15,16.12775731]
[1727669119472,16.98529843,156.29,156.21,16.12775731]
[1727669119671,16.98529843,156.29,156.23,16.12775731]
[1727669119871,15.8703,156.29,156.23,16.12775731]
[1727669120565,15.8703,156.29,156.19,15.5304]
[1727669120566,7.99879395,156.28,156.21,16.12775731]
[1727669120960,0.25098,156.27,156.21,16.12775731]
[1727669121163,0.12549,156.25,156.19,16.12775731]
[1727669121781,0.12549,156.26,156.19,16.12775731]
[1727669123691,0.12549,156.26,156.2,1.2801828]
[1727669124873,0.12549,156.26,156.19,16.12775731]
[1727669125680,1.72571912,156.26,156.19,16.12775731]
[1727669125990,0.12549,156.26,156.19,16.12775731]
[1727669127498,1.7257194,156.26,156.19,16.12775731]
[1727669127880,0.12549,156.26,156.19,16.12775731]
[1727669128275,24.027864,156.27,156.21,16.12775731]
[1727669128583,0.12549,156.26,156.21,16.12775731]
[1727669129888,22.2688,156.29,156.22,1.28013332]
[1727669130790,15.8703,156.29,156.21,16.12775731]
[1727669130993,22.5984,156.32,156.25,16.12775731]
[1727669131289,22.5984,156.32,156.27,16.12775731]
[1727669131496,22.5984,156.32,156.28,1.27959233]
[1727669132793,22.5984,156.32,156.27,16.12775731]
[1727669133623,22.5984,156.32,156.28,1.27959624]
[1727669134593,22.5984,156.32,156.27,16.12775731]
[1727669134895,22.5984,156.32,156.28,1.27959739]
[1727669135198,22.5984,156.32,156.27,16.12775731]
[1727669136186,1.85047915,156.31,156.26,20.0]
[1727669140211,24.027864,156.31,156.25,16.12775731]
[1727669140400,24.027864,156.31,156.26,1.27977859]
[1727669140708,0.12549,156.31,156.26,1.27977859]
[1727669141202,22.5984,156.32,156.26,1.27977859]
[1727669141508,22.5984,156.32,156.25,16.12775731]
[1727669145597,22.5984,156.32,156.28,10.31088952]
[1727669149617,16.1911,156.32,156.3,10.31088952]
[1727669149797,6.639,156.36,156.3,10.31088952]
[1727669149798,22.9775,156.36,156.31,1.27944748]
[1727669150005,22.9775,156.36,156.34,10.31088952]
[1727669150509,29.3733,156.36,156.27,20.0]
[1727669150711,1.59939826,156.35,156.28,10.31088952]
[1727669150897,6.3963,156.34,156.28,10.31088952]
[1727669151407,24.027864,156.33,156.28,10.31088952]
[1727669152307,24.027864,156.34,156.28,11.59053654]
[1727669152809,24.027864,156.34,156.3,10.31088952]
[1727669153202,0.25098,156.35,156.3,10.31088952]
[1727669153619,24.027864,156.35,156.3,10.31088952]
[1727669154523,29.3731,156.36,156.3,10.31088952]
[1727669154831,1.59925317,156.35,156.3,10.31088952]
[1727669155510,0.12549,156.35,156.3,10.31088952]
[1727669155703,0.12549,156.35,156.32,10.31088952]
[1727669157531,1.72473981,156.35,156.32,10.31088952]
[1727669158222,1.72473981,156.35,156.3,10.31088952]
[1727669158399,0.12549,156.35,156.3,10.31088952]
[1727669160299,24.027864,156.35,156.24,1.27939057]
[1727669160507,24.027864,156.35,156.29,10.31088952]
[1727669161215,30.423864,156.35,156.29,10.31088952]
[1727669161603,0.12549,156.33,156.29,10.31088952]
[1727669161904,1.59942003,156.32,156.23,20.0]
[1727669162109,1.59942003,156.32,156.28,10.31088952]
[1727669162923,0.12549,156.33,156.28,10.31088952]
[1727669163100,22.9775,156.36,156.32,10.31088952]
[1727669163305,22.9775,156.36,156.34,10.31088952]
[1727669163727,16.3385,156.36,156.34,10.31088952]
[1727669168219,6.5852,156.4,156.35,1.27916142]
[1727669168220,21.6201,156.4,156.35,1.27916142]
[1727669168425,21.6201,156.4,156.37,10.31088952]
[1727669170011,28.891,156.44,156.39,10.31088952]
[1727669170414,22.4987,156.44,156.39,10.31088952]
[1727669170928,7.99104564,156.43,156.39,10.31088952]
[1727669171912,0.25098,156.42,156.39,10.31088952]
[1727669172230,1.849554,156.42,156.37,10.31088952]
[1727669172733,0.25098,156.42,156.37,10.31088952]
[1727669172935,0.12549,156.41,156.37,10.31088952]
[1727669173132,1.59867037,156.4,156.35,10.31088952]
[1727669174424,0.12549,156.39,156.35,10.31088952]
[1727669174824,1.59885774,156.38,156.35,10.31088952]
[1727669175033,0.12549,156.39,156.35,10.31088952]
[1727669175532,0.12549,156.4,156.35,10.31088952]
[1727669176526,0.12549,156.39,156.35,10.31088952]
[1727669177347,0.25098,156.4,156.35,10.31088952]
[1727669178338,0.12549,156.4,156.37,10.31088952]
[1727669178635,0.12549,156.41,156.37,10.31088952]
[1727669178816,0.12549,156.42,156.37,10.31088952]
[1727669179927,0.25098,156.42,156.37,10.31088952]
[1727669180127,1.59861927,156.41,156.32,20.0]
[1727669180334,6.3947,156.38,156.33,10.31088952]
[1727669180531,0.25098,156.38,156.33,11.59011315]
[1727669181318,0.12549,156.38,156.33,11.59011315]
[1727669181518,24.027864,156.39,156.33,11.59011315]
[1727669182736,0.25098,156.37,156.33,10.31088952]
[1727669182941,1.59915496,156.36,156.33,10.31088952]
[1727669183441,22.1514,156.38,156.33,11.59011272]
[1727669185826,22.1514,156.38,156.33,10.31088952]
[1727669186020,1.7244999,156.37,156.33,10.31088952]
[1727669186216,1.7244999,156.37,156.32,20.0]
[1727669186421,8.1195999,156.37,156.32,20.0]
[1727669187120,0.12549,156.35,156.32,20.0]
[1727669187544,1.72474698,156.35,156.31,10.31088952]
[1727669190121,0.12549,156.35,156.31,10.31088952]
[1727669190324,22.1514,156.38,156.33,10.31088952]
[1727669191748,0.12549,156.37,156.33,10.31088952]
[1727669192826,25.62701525,156.37,156.31,10.31088952]
[1727669195123,30.422964,156.37,156.31,10.31088952]
[1727669195330,24.027864,156.35,156.28,20.0]
[1727669195530,1.59936259,156.34,156.29,10.31088952]
[1727669195729,1.59936259,156.34,156.3,20.0]
[1727669195946,24.027864,156.35,156.3,20.0]
[1727669196537,1.59936243,156.34,156.3,20.0]
[1727669198145,24.027864,156.35,156.3,20.0]
[1727669198841,24.027864,156.35,156.29,10.31088952]
[1727669199046,24.027864,156.35,156.3,20.0]
[1727669199352,0.25098,156.36,156.31,11.59037799]
[1727669199538,22.1514,156.38,156.31,11.59037799]
[1727669199539,24.027864,156.37,156.31,11.59037799]
[1727669201650,24.027864,156.37,156.28,20.0]
[1727669201651,0.12549,156.34,156.28,20.0]
[1727669201830,1.72487382,156.34,156.3,20.0]
[1727669202749,0.12549,156.34,156.3,20.0]
[1727669203532,0.12549,156.35,156.31,10.31088952]
[1727669203733,0.25098,156.36,156.31,10.31088952]
[1727669206743,0.25098,156.36,156.31,11.59028544]
[1727669207845,22.1514,156.38,156.33,10.31088952]
[1727669209435,0.25098,156.37,156.33,10.31088952]
[1727669209637,32.02220687,156.37,156.31,10.31088952]
[1727669210150,25.62700687,156.37,156.31,10.31088952]
[1727669210542,24.027864,156.37,156.31,10.31088952]
[1727669211547,22.1514,156.38,156.33,10.31088952]
[1727669211752,22.1514,156.38,156.34,1.27918221]
[1727669212050,22.1514,156.38,156.33,10.31088952]
[1727669212555,22.1514,156.38,156.34,1.27914285]
[1727669218657,22.1514,156.38,156.33,10.31088952]
[1727669224057,6.3939,156.4,156.33,10.31088952]
[1727669224363,85.99411195,156.46,156.39,10.31088952]
[1727669224364,6.3914,156.46,156.39,10.31088952]
[1727669224546,6.3914,156.46,156.42,10.31088952]
[1727669225657,0.12549,156.44,156.42,10.31088952]
[1727669229457,1.84929273,156.44,156.36,20.0]
[1727669229664,6.64408,156.42,156.36,30.31088952]
[1727669229848,0.25098,156.42,156.36,30.31088952]
[1727669230168,0.25098,156.42,156.38,10.31088952]
[1727669232238,6.3922,156.44,156.38,10.31088952]
[1727669232650,1.59843352,156.43,156.38,10.31088952]
[1727669232946,6.3922,156.44,156.38,10.31088952]
[1727669233269,1.59843299,156.43,156.38,10.31088952]
[1727669233981,1.72392069,156.43,156.38,10.31088952]
[1727669234152,8.11662069,156.43,156.38,10.31088952]
[1727669234340,0.12549,156.41,156.38,10.31088952]
[1727669234545,1.72415922,156.41,156.38,10.31088952]
[1727669235747,23.902374,156.4,156.32,20.0]
[1727669235956,0.12549,156.38,156.34,10.31088952]
[1727669236156,6.51969,156.4,156.34,10.31088952]
[1727669236358,0.12549,156.39,156.34,10.31088952]
[1727669237467,1.72440722,156.39,156.34,10.31088952]
[1727669238070,6.51969,156.4,156.36,10.31088952]
[1727669238071,0.12549,156.4,156.36,10.31088952]
[1727669238382,1.72426201,156.4,156.36,10.31088952]
[1727669238556,0.12549,156.39,156.34,10.31088952]
[1727669239760,6.51969,156.4,156.34,10.31088952]
[1727669239974,1.5988334,156.39,156.34,10.31088952]
[1727669241067,6.51969,156.4,156.34,10.31088952]
[1727669242378,0.12549,156.39,156.34,10.31088952]
[1727669242583,1.72431857,156.39,156.34,10.31088952]
[1727669242875,0.12549,156.39,156.34,10.31088952]
[1727669243665,0.25098,156.4,156.34,10.31088952]
[1727669247183,22.0411,156.41,156.34,10.31088952]
[1727669247471,22.0411,156.41,156.3,28.72419797]
[1727669247472,15.6476,156.41,156.38,10.31088952]
[1727669261878,6.2167,156.42,156.33,1.278837]
[1727669261879,21.7503,156.45,156.4,10.31088952]
[1727669262089,21.7503,156.45,156.42,10.31088952]
[1727669262090,15.3584,156.45,156.42,10.31088952]
[1727669265273,14.8584,156.45,156.42,10.31088952]
[1727669266259,6.3578633,156.5,156.44,10.31088952]
[1727669266487,6.3578633,156.5,156.46,10.31088952]
[1727669268188,6.3578633,156.5,156.37,8.23572991]
[1727669268189,0.3308633,156.5,156.48,10.31088952]
[1727669270770,0.3308633,156.5,156.49,1.27793246]
[1727669271680,0.3308633,156.5,156.48,10.31088952]
[1727669276597,0.3308633,156.5,156.42,44.027864]
[1727669276816,0.3308633,156.5,156.47,10.31088952]
[1727669279675,0.3308633,156.5,156.49,10.31088952]
[1727669280775,0.3308633,156.5,156.42,44.027864]
[1727669280979,0.3308633,156.5,156.49,10.31088952]
[1727669283108,0.3308633,156.5,156.46,20.0]
[1727669283401,0.3308633,156.5,156.49,10.31088952]
[1727669286179,0.3308633,156.5,156.43,30.0]
[1727669286603,1.92848063,156.5,156.47,10.31088952]
[1727669287185,8.31828063,156.5,156.39,6.65267623]
[1727669287410,0.25098,156.49,156.39,6.65267623]
[1727669287581,1.59794076,156.48,156.44,10.31088952]
[1727669289209,15.1813,156.47,156.42,10.31088952]
[1727669291115,15.1813,156.47,156.46,10.31088952]
[1727669291801,6.5437,156.48,156.46,10.31088952]
[1727669291993,0.3308633,156.5,156.46,10.31088952]
[1727669293513,1.92852864,156.5,156.46,10.31088952]
[1727669293815,8.31832864,156.5,156.44,10.31088952]
[1727669294908,23.902374,156.49,156.39,6.65267623]
[1727669295102,1.59789468,156.48,156.44,10.31088952]
[1727669296719,7.98849468,156.48,156.44,10.31088952]
[1727669296899,1.59789468,156.48,156.44,10.31088952]
[1727669297220,24.1077473,156.5,156.46,10.31088952]
[1727669297810,1.59779955,156.49,156.44,10.31088952]
[1727669298404,7.98799955,156.49,156.44,10.31088952]
[1727669298704,23.902374,156.48,156.44,10.31088952]
[1727669298903,1.59795244,156.47,156.44,10.31088952]
[1727669299520,6.7206633,156.5,156.44,10.31088952]
[1727669299728,25.50021378,156.49,156.44,10.31088952]
[1727669300096,23.902374,156.49,156.44,10.31088952]
[1727669300703,25.50021452,156.49,156.44,10.31088952]
[1727669300908,6.7206633,156.5,156.44,10.31088952]
[1727669301197,8.31846424,156.5,156.44,10.31088952]
[1727669301808,0.12549,156.48,156.4,20.0]
[1727669302004,30.167084,156.49,156.44,10.31088952]
[1727669302218,30.4975473,156.5,156.44,10.31088952]
[1727669304216,30.4975473,156.5,156.45,1.27826315]
[1727669304411,30.4975473,156.5,156.44,10.31088952]
[1727669305218,30.4975473,156.5,156.45,1.2782389]
[1727669305219,0.3308633,156.5,156.45,1.2782389]
[1727669305417,0.3308633,156.5,156.46,10.31088952]
[1727669305624,0.3308633,156.5,156.48,10.31088952]
[1727669306323,0.3308633,156.5,156.46,10.31088952]
[1727669307445,0.3308633,156.5,156.48,10.31088952]
[1727669309103,0.3308633,156.5,156.46,10.31088952]
[1727669310423,24.1077473,156.5,156.44,10.31088952]
[1727669310625,1.59776049,156.49,156.44,10.31088952]
[1727669313234,30.4974473,156.5,156.44,10.31088952]
[1727669313531,5.13383599,156.49,156.44,10.31088952]
[1727669313734,24.1077473,156.5,156.44,10.31088952]
[1727669313908,20.75063367,156.49,156.44,10.31088952]
[1727669314113,5.1335623,156.48,156.44,10.31088952]
[1727669314309,17.21464829,156.49,156.44,10.31088952]
[1727669315231,17.21464829,156.49,156.4,26.63145997]
[1727669315546,17.21464829,156.49,156.44,10.31088952]
[1727669315913,5.1337758,156.48,156.44,10.31088952]
[1727669316115,17.21464829,156.49,156.44,10.31088952]
[1727669316313,5.13496537,156.48,156.44,10.31088952]
[1727669316522,17.21464829,156.49,156.44,10.31088952]
[1727669317642,5.13513131,156.48,156.44,10.31088952]
[1727669317813,17.21464829,156.49,156.44,10.31088952]
[1727669318012,5.13513131,156.48,156.44,10.31088952]
[1727669318208,17.21464829,156.49,156.44,10.31088952]
[1727669318440,5.13552346,156.48,156.44,10.31088952]
[1727669318775,1.59793829,156.47,156.44,10.31088952]
[1727669319039,6.73324712,156.47,156.44,10.31088952]
[1727669319339,1.59793829,156.47,156.44,10.31088952]
[1727669319639,7.98923829,156.47,156.4,26.63145997]
[1727669319842,5.13541483,156.46,156.42,10.31088952]
[1727669320039,30.418464,156.48,156.42,10.31088952]
[1727669320217,5.13544187,156.47,156.42,10.31088952]
[1727669320416,5.13544187,156.46,156.42,10.31088952]
[1727669320621,30.292974,156.48,156.42,10.31088952]
[1727669320834,5.13579671,156.47,156.44,10.31088952]
[1727669321023,5.13579671,156.46,156.44,10.31088952]
[1727669321223,23.776884,156.48,156.44,10.31088952]
[1727669321421,5.1368533,156.47,156.44,10.31088952]
[1727669321621,5.1368533,156.46,156.44,10.31088952]
[1727669321945,23.776884,156.48,156.44,10.31088952]
[1727669322460,5.13855672,156.47,156.44,10.31088952]
[1727669322641,5.13855672,156.46,156.44,10.31088952]
[1727669322939,15.6169,156.49,156.44,10.31088952]
[1727669323243,5.13904127,156.48,156.44,10.31088952]
[1727669323427,5.13904127,156.47,156.44,10.31088952]
[1727669323738,5.13904127,156.46,156.44,10.31088952]
[1727669323930,15.6169,156.49,156.44,10.31088952]
[1727669324122,5.13855366,156.48,156.44,10.31088952]
[1727669324433,5.13855366,156.47,156.44,10.31088952]
[1727669324638,5.13855366,156.46,156.44,10.31088952]
[1727669324811,22.0071,156.49,156.44,10.31088952]
[1727669325018,5.13759649,156.48,156.44,10.31088952]
[1727669325422,5.13722241,156.47,156.44,10.31088952]
[1727669325623,5.13722241,156.46,156.44,10.31088952]
[1727669325949,23.60497748,156.49,156.44,10.31088952]
[1727669326129,5.13660856,156.48,156.44,10.31088952]
[1727669326329,5.13660856,156.47,156.44,10.31088952]
[1727669326519,5.13660856,156.46,156.44,10.31088952]
[1727669326719,23.60497576,156.49,156.44,10.31088952]
[1727669326932,5.13558185,156.48,156.44,10.31088952]
[1727669327241,5.13558185,156.47,156.44,10.31088952]
[1727669327444,5.13558185,156.46,156.44,10.31088952]
[1727669327746,23.60497576,156.49,156.44,10.31088952]
[1727669328042,5.13442788,156.48,156.44,10.31088952]
[1727669328243,5.13442788,156.47,156.44,10.31088952]
[1727669328638,23.60497576,156.49,156.44,10.31088952]
[1727669328841,5.13494279,156.46,156.44,10.31088952]
[1727669329036,23.60497576,156.49,156.44,10.31088952]
[1727669329237,5.13396083,156.48,156.44,10.31088952]
[1727669329426,5.13396083,156.47,156.44,10.31088952]
[1727669329626,5.13396083,156.46,156.44,10.31088952]
[1727669329829,23.60497576,156.49,156.44,10.31088952]
[1727669330029,5.1350727,156.48,156.44,10.31088952]
[1727669330241,5.1350727,156.47,156.42,10.31088952]
[1727669330447,5.1350727,156.46,156.42,10.31088952]
[1727669330651,6.73311525,156.45,156.42,10.31088952]
[1727669330942,23.776884,156.47,156.42,10.31088952]
[1727669331241,6.73414893,156.46,156.42,10.31088952]
[1727669331447,5.13610632,156.45,156.42,10.31088952]
[1727669331631,5.13610632,156.44,156.42,10.31088952]
[1727669331834,1.59804261,156.46,156.42,10.31088952]
[1727669332228,5.1368935,156.45,156.42,10.31088952]
[1727669332425,5.1368935,156.44,156.42,10.31088952]
[1727669332624,1.59804261,156.46,156.42,10.31088952]
[1727669332850,5.1380648,156.45,156.42,10.31088952]
[1727669333034,5.1380648,156.44,156.42,10.31088952]
[1727669333235,30.167884,156.47,156.42,10.31088952]
[1727669333438,5.13849964,156.46,156.42,10.31088952]
[1727669333639,5.13849964,156.45,156.42,10.31088952]
[1727669333953,5.13849964,156.44,156.42,10.31088952]
[1727669334129,30.167884,156.47,156.42,10.31088952]
[1727669334332,5.13851264,156.46,156.42,10.31088952]
[1727669334530,5.13851264,156.45,156.42,10.31088952]
[1727669334730,5.13851264,156.44,156.42,10.31088952]
[1727669334927,22.0074,156.49,156.43,1.27843707]
[1727669335132,5.13872342,156.48,156.44,10.31088952]
[1727669335429,5.13872342,156.47,156.44,10.31088952]
[1727669335629,5.13872342,156.46,156.44,10.31088952]
[1727669335838,5.13872342,156.45,156.44,10.31088952]
[1727669339056,22.0074,156.49,156.44,10.31088952]
[1727669339349,5.13949362,156.45,156.44,10.31088952]
[1727669340451,5.13949362,156.45,156.42,10.31088952]
[1727669340654,6.3906,156.48,156.42,10.31088952]
[1727669340830,5.1392881,156.47,156.43,1.27841135]
[1727669341032,5.1392881,156.46,156.43,1.27841135]
[1727669341333,5.1392881,156.45,156.43,1.27841135]
[1727669341561,22.0071,156.49,156.43,1.27841135]
[1727669342152,5.13920631,156.48,156.43,1.27841135]
[1727669342530,5.13920631,156.47,156.43,1.27841135]
[1727669342732,5.13920631,156.46,156.43,1.27841135]
[1727669343026,5.13920631,156.45,156.42,10.31088952]
[1727669343250,7.98858783,156.48,156.42,10.31088952]
[1727669343456,5.1383162,156.47,156.42,10.31088952]